bitfinex/quotes_BTCUSD_20250529
["timestamp","ask_amount","ask_price","bid_price","bid_amount"]
[1748536711267,0.27053804,106880.0,106870.0,0.40774834]
[1748536711478,0.27053804,106880.0,106870.0,0.31370085]
[1748536713289,0.27053804,106880.0,106870.0,0.31669441]
[1748536718067,0.27053804,106880.0,106870.0,0.02253441]
[1748536718313,0.27053804,106880.0,106870.0,0.31665441]
[1748536719824,0.27053804,106880.0,106870.0,0.31665443]
[1748536720741,0.27053804,106880.0,106870.0,0.61356569]
[1748536720996,0.27053804,106880.0,106870.0,0.63227905]
[1748536720997,0.01035584,106880.0,106870.0,0.63227905]
[1748536721205,0.01971142,106880.0,106870.0,0.66341905]
[1748536721410,0.22554946,106880.0,106870.0,0.66341905]
[1748536721616,0.02906753,106880.0,106870.0,0.66341905]
[1748536721819,0.02906744,106880.0,106870.0,0.66341905]
[1748536722641,0.01971142,106880.0,106870.0,0.66341905]
[1748536722770,0.02906744,106880.0,106870.0,0.66341905]
[1748536723154,0.001,106880.0,106870.0,1.29995785]
[1748536723397,0.001,106880.0,106870.0,2.49181385]
[1748536723398,0.01035558,106880.0,106870.0,2.49181385]
[1748536723618,0.001,106880.0,106870.0,2.34126585]
[1748536723822,0.01035549,106880.0,106870.0,2.34126585]
[1748536724040,0.01035549,106880.0,106870.0,2.34126531]
[1748536724255,0.01971116,106880.0,106870.0,2.32392531]
[1748536724968,0.01035549,106880.0,106870.0,2.32392531]
[1748536725184,0.01971116,106880.0,106870.0,2.34143584]
[1748536725403,0.01035549,106880.0,106870.0,2.34143584]
[1748536725619,0.01971116,106880.0,106870.0,2.34143584]
[1748536725839,0.21619283,106880.0,106870.0,1.01399321]
[1748536726074,0.03842311,106880.0,106870.0,1.32678661]
[1748536726281,0.029067,106880.0,106870.0,0.69024791]
[1748536726492,0.03842293,106880.0,106870.0,0.69024796]
[1748536726927,0.029067,106880.0,106870.0,0.67273523]
[1748536727139,0.03842293,106880.0,106870.0,0.67273523]
[1748536727794,0.029067,106880.0,106870.0,0.69024543]
[1748536728000,0.029067,106880.0,106870.0,0.67273523]
[1748536728218,0.029067,106880.0,106870.0,0.66974219]
[1748536728440,0.22554955,106880.0,106870.0,0.63530826]
[1748536728664,0.22554955,106880.0,106870.0,0.64043324]
[1748536728890,0.22554955,106880.0,106870.0,0.62292205]
[1748536729108,0.26983804,106880.0,106870.0,0.099087]
[1748536729326,0.26983804,106880.0,106870.0,0.42518065]
[1748536729774,0.26983804,106880.0,106870.0,0.4426932]
[1748536730309,0.26983804,106880.0,106870.0,0.44269309]
[1748536730769,0.26983804,106880.0,106870.0,0.4426925]
[1748536730972,0.26983804,106880.0,106870.0,0.1486525]
[1748536731181,0.26983804,106880.0,106870.0,0.4426926]
[1748536732339,0.26983804,106880.0,106870.0,0.4426923]
[1748536732561,0.26983804,106880.0,106870.0,0.44269316]
[1748536732987,0.23953804,106880.0,106870.0,0.42518113]
[1748536733212,0.23953804,106880.0,106870.0,0.44269316]
[1748536734090,0.27203804,106880.0,106870.0,0.44269316]
[1748536734301,0.27203804,106880.0,106870.0,0.44269231]
[1748536734509,0.27203804,106880.0,106870.0,0.4426525]
[1748536734737,0.27203804,106880.0,106870.0,0.44265261]
[1748536734986,0.27203804,106880.0,106870.0,0.42514113]
[1748536735855,0.27203804,106880.0,106870.0,0.44265209]
[1748536736085,0.27203804,106880.0,106870.0,0.42514113]
[1748536736787,0.27203804,106880.0,106870.0,1.33839361]
[1748536736788,0.01035567,106880.0,106870.0,1.33839361]
[1748536737006,0.01971143,106880.0,106870.0,1.33839361]
[1748536737224,0.001,106880.0,106870.0,1.35590218]
[1748536737450,0.01035558,106880.0,106870.0,1.33839361]
[1748536737709,0.01971125,106880.0,106870.0,1.33839361]
[1748536737925,0.01971125,106880.0,106870.0,1.35590076]
[1748536738144,0.01971125,106880.0,106870.0,1.33839361]
[1748536739685,0.01971125,106880.0,106870.0,1.35589724]
[1748536739894,0.01971125,106880.0,106870.0,1.33839361]
[1748536740111,0.01971125,106880.0,106870.0,1.3558972]
[1748536740325,0.02906709,106880.0,106870.0,1.3558972]
[1748536740544,0.03842285,106880.0,106870.0,1.33839361]
[1748536740768,0.03842285,106880.0,106870.0,1.32499687]
[1748536740993,0.03842285,106880.0,106870.0,1.32499689]
[1748536741216,0.02906701,106880.0,106870.0,1.30749317]
[1748536741455,0.89284907,106880.0,106870.0,0.13111047]
[1748536741682,0.9039314,106880.0,106870.0,0.0225528]
[1748536742132,0.80422044,106880.0,106870.0,0.0225528]
[1748536742350,0.89646044,106880.0,106870.0,0.0205528]
[1748536742570,0.86837144,106880.0,106870.0,0.0205528]
[1748536742907,0.79653164,106880.0,106870.0,0.3145128]
[1748536743332,0.70129164,106880.0,106870.0,0.3145128]
[1748536743556,0.79753164,106880.0,106870.0,0.3155128]
[1748536743987,0.79653164,106880.0,106870.0,0.3125128]
[1748536744433,0.79853164,106880.0,106870.0,0.3135128]
[1748536744663,0.79653164,106880.0,106870.0,0.3125128]
[1748536744893,0.70847769,106880.0,106870.0,0.3135128]
[1748536745368,0.70847769,106880.0,106870.0,0.32805365]
[1748536746729,0.61623769,106880.0,106870.0,0.32805365]
[1748536748009,1.02039769,106880.0,106870.0,0.0195528]
[1748536748204,1.05595765,106880.0,106870.0,0.3135128]
[1748536748433,1.1470116,106880.0,106870.0,0.0195528]
[1748536748895,1.11145164,106880.0,106870.0,0.3135128]
[1748536749124,1.11145164,106880.0,106870.0,0.0195528]
[1748536749364,1.2392516,106880.0,106870.0,0.0195528]
[1748536749830,0.26937623,106860.0,106850.0,0.294]
[1748536750058,0.45267018,106860.0,106850.0,8.926e-05]
[1748536750773,0.79267018,106860.0,106850.0,8.926e-05]
[1748536750995,1.19675018,106860.0,106850.0,8.926e-05]
[1748536751214,1.23231014,106860.0,106850.0,8.926e-05]
[1748536751664,1.23331014,106860.0,106850.0,8.926e-05]
[1748536751898,0.23743403,106830.0,106820.0,4e-05]
[1748536752115,0.23743403,106830.0,106820.0,0.01458085]
[1748536752116,0.36269403,106830.0,106820.0,0.01458085]
[1748536752334,0.36269403,106830.0,106820.0,0.30854085]
[1748536752560,0.36269403,106830.0,106820.0,0.294]
[1748536753224,0.36269403,106830.0,106820.0,0.296]
[1748536754295,0.36369403,106830.0,106820.0,0.297]
[1748536754766,0.36369403,106830.0,106820.0,0.00304]
[1748536754979,0.36369403,106830.0,106820.0,0.29704]
[1748536755415,0.45474798,106830.0,106820.0,0.29704]
[1748536755623,0.45474798,106830.0,106820.0,0.29504]
[1748536756320,0.45474798,106830.0,106820.0,0.00104]
[1748536756750,1.28264798,106830.0,106820.0,0.00104]
[1748536756960,1.28264798,106830.0,106820.0,4e-05]
[1748536756961,1.28164798,106830.0,106820.0,4e-05]
[1748536757451,1.28264798,106830.0,106820.0,0.00104]
[1748536760711,1.19048798,106830.0,106820.0,0.00104]
[1748536760939,1.19135403,106830.0,106820.0,0.01558085]
[1748536762698,0.70345403,106830.0,106820.0,0.01558085]
[1748536764292,0.61110493,106830.0,106820.0,0.01558085]
[1748536764503,0.70330493,106830.0,106820.0,0.01558085]
[1748536766236,0.70330493,106830.0,106820.0,0.30958085]
[1748536766900,0.70330493,106830.0,106820.0,0.01558085]
[1748536767121,0.70330493,106830.0,106820.0,0.30958085]
[1748536772797,0.73530493,106830.0,106820.0,0.30958085]
[1748536773025,0.76670493,106830.0,106820.0,0.295]
[1748536773718,0.76670493,106830.0,106820.0,0.00104]
[1748536773966,0.76670493,106830.0,106820.0,0.295]
[1748536776375,0.85775888,106830.0,106820.0,0.00104]
[1748536776632,0.85775888,106830.0,106820.0,0.295]
[1748536781455,0.86692936,106830.0,106820.0,0.295]
[1748536781704,0.86692936,106830.0,106820.0,0.30950085]
[1748536781705,0.29890493,106830.0,106820.0,0.30950085]
[1748536781930,0.29890493,106830.0,106820.0,0.34260085]
[1748536784175,0.29890493,106830.0,106820.0,0.30950085]
[1748536785603,0.32890493,106830.0,106820.0,0.30950085]
[1748536785813,0.32890493,106830.0,106820.0,0.29492]
[1748536786025,0.36160493,106830.0,106820.0,0.29492]
[1748536786450,0.45265888,106830.0,106820.0,0.00104]
[1748536786663,0.45265888,106830.0,106820.0,0.29492]
[1748536786894,0.45265888,106830.0,106820.0,0.00104]
[1748536787109,0.45265888,106830.0,106820.0,0.29492]
[1748536787963,0.41995888,106830.0,106820.0,0.29492]
[1748536788884,0.32890493,106830.0,106820.0,0.29492]
[1748536790614,0.29890493,106830.0,106820.0,0.29492]
[1748536792619,0.001,106830.0,106820.0,0.83701525]
[1748536792853,0.001,106830.0,106820.0,3.45314919]
[1748536793076,0.00014758,106860.0,106850.0,0.29469472]
[1748536793301,0.09226758,106860.0,106850.0,1.38236706]
[1748536793519,0.09226758,106860.0,106850.0,0.90225226]
[1748536793739,0.00014758,106860.0,106850.0,0.98182187]
[1748536793970,0.00014758,106860.0,106850.0,1.75353515]
[1748536794195,0.00014758,106860.0,106850.0,3.94072598]
[1748536794410,0.00014758,106860.0,106850.0,3.87007198]
[1748536794847,0.00014758,106860.0,106850.0,3.88759161]
[1748536795064,0.00014758,106860.0,106850.0,4.81777321]
[1748536795287,0.00014758,106860.0,106850.0,5.02922774]
[1748536795511,0.00114758,106860.0,106850.0,5.03222721]
[1748536795808,0.18719141,106910.0,106880.0,0.23466659]
[1748536796033,0.18768392,106910.0,106900.0,0.01454085]
[1748536796252,0.18768392,106910.0,106900.0,0.21915171]
[1748536796479,0.28899922,106910.0,106900.0,0.22850615]
[1748536796696,0.28899922,106910.0,106900.0,0.01454085]
[1748536796931,0.28899922,106910.0,106900.0,0.03206132]
[1748536797150,0.28999922,106910.0,106900.0,0.32582132]
[1748536797359,0.28999922,106910.0,106900.0,0.30830085]
[1748536798432,0.28899922,106910.0,106900.0,0.30830085]
[1748536798647,0.28899922,106910.0,106900.0,0.30930085]
[1748536799326,0.62899922,106910.0,106900.0,0.31054085]
[1748536799576,0.62899922,106910.0,106900.0,0.29708]
[1748536799577,0.66139922,106910.0,106900.0,0.29708]
[1748536800472,0.75245317,106910.0,106900.0,0.001]
[1748536800706,0.78295317,106910.0,106900.0,0.29716]
[1748536800923,0.78295317,106910.0,106900.0,0.001]
[1748536801136,0.69087317,106910.0,106900.0,0.001]
[1748536801345,0.78295317,106910.0,106900.0,0.001]
[1748536805159,1.18711317,106910.0,106900.0,0.001]
[1748536807092,1.67501317,106910.0,106900.0,0.001]
[1748536808377,1.61207317,106910.0,106900.0,0.001]
[1748536809703,1.61207317,106910.0,106900.0,0.29672]
[1748536809918,1.55183317,106910.0,106900.0,0.29672]
[1748536810131,1.61207317,106910.0,106900.0,0.29672]
[1748536814030,1.61207317,106910.0,106900.0,0.001]
[1748536814239,1.61207317,106910.0,106900.0,0.29648]
[1748536816426,1.61207317,106910.0,106900.0,0.31398191]
[1748536816840,1.61207317,106910.0,106900.0,0.31398204]
[1748536817255,1.61207317,106910.0,106900.0,0.31362204]
[1748536817459,1.61207317,106910.0,106900.0,0.31362326]
[1748536818492,1.61207317,106910.0,106900.0,0.31362428]
[1748536818953,1.11587317,106910.0,106900.0,0.31362426]
[1748536819201,1.42893922,106910.0,106900.0,0.32816482]
[1748536819438,1.52205922,106910.0,106900.0,0.35866504]
[1748536819663,1.18205922,106910.0,106900.0,0.35866504]
[1748536819881,1.18205922,106910.0,106900.0,0.35866474]
[1748536820429,1.18205922,106910.0,106900.0,0.31362436]
[1748536820645,1.18205922,106910.0,106900.0,0.31362459]
[1748536820870,1.18205922,106910.0,106900.0,0.31362468]
[1748536821134,1.18205922,106910.0,106900.0,0.31362465]
[1748536821359,1.18205922,106910.0,106900.0,0.31362459]
[1748536822491,1.18205922,106910.0,106900.0,0.31362538]
[1748536822753,1.18205922,106910.0,106900.0,0.01850538]
[1748536822956,1.18205922,106910.0,106900.0,0.31294556]
[1748536823617,1.18205922,106910.0,106900.0,0.29544]
[1748536824058,1.18205922,106910.0,106900.0,0.31294632]
[1748536824508,1.27311317,106910.0,106900.0,0.31278749]
[1748536824720,1.27311317,106910.0,106900.0,0.29528]
[1748536824721,1.30521317,106910.0,106900.0,0.29528]
[1748536824947,1.30521317,106910.0,106900.0,0.31278749]
[1748536825785,1.30521317,106910.0,106900.0,0.29528]
[1748536825996,1.30521317,106910.0,106900.0,0.31278858]
[1748536827615,1.27311317,106910.0,106900.0,0.29528]
[1748536827825,1.27311317,106910.0,106900.0,0.3127914]
[1748536828879,1.27311317,106910.0,106900.0,0.31279697]
[1748536829093,0.77587317,106910.0,106900.0,0.31279705]
[1748536829312,1.27311317,106910.0,106900.0,0.31279705]
[1748536829529,1.27311317,106910.0,106900.0,0.3128005]
[1748536829743,1.27311317,106910.0,106900.0,0.31280024]
[1748536830387,1.27311317,106910.0,106900.0,0.31280021]
[1748536831041,1.27311317,106910.0,106900.0,0.31279982]
[1748536831502,1.27311317,106910.0,106900.0,0.29528]
[1748536831719,1.27311317,106910.0,106900.0,0.31279991]
[1748536832598,1.30521317,106910.0,106900.0,0.31280032]
[1748536832809,1.30521317,106910.0,106900.0,0.31280046]
[1748536833668,1.27311317,106910.0,106900.0,0.31280046]
[1748536833947,1.17999317,106910.0,106900.0,0.31280046]
[1748536834160,1.27311317,106910.0,106900.0,0.31220046]
[1748536834806,1.27311317,106910.0,106900.0,0.31220219]
[1748536835249,1.17999317,106910.0,106900.0,0.29468]
[1748536835456,1.27311317,106910.0,106900.0,0.31220367]
[1748536835665,1.27311317,106910.0,106900.0,0.29468]
[1748536835666,1.17999317,106910.0,106900.0,0.29468]
[1748536835876,1.17999317,106910.0,106900.0,0.31220367]
[1748536836091,1.27311317,106910.0,106900.0,0.31220367]
[1748536836318,0.77587317,106910.0,106900.0,0.31220367]
[1748536836560,1.18205922,106910.0,106900.0,0.34400419]
[1748536836771,1.18205922,106910.0,106900.0,0.34400417]
[1748536837711,1.18205922,106910.0,106900.0,0.32648]
[1748536837928,1.18205922,106910.0,106900.0,0.34400523]
[1748536838750,1.18205922,106910.0,106900.0,0.34400733]
[1748536839447,1.18205922,106910.0,106900.0,0.34400687]
[1748536840351,1.18205922,106910.0,106900.0,0.34400684]
[1748536840980,1.18205922,106910.0,106900.0,0.34400607]
[1748536841404,1.18205922,106910.0,106900.0,0.34400526]
[1748536841891,1.18205922,106910.0,106900.0,0.32648]
[1748536842096,1.18205922,106910.0,106900.0,0.34400527]
[1748536842307,1.18205922,106910.0,106900.0,0.3440053]
[1748536842974,1.18205922,106910.0,106900.0,0.34400526]
[1748536843594,1.18205922,106910.0,106900.0,0.34400488]
[1748536844022,1.18205922,106910.0,106900.0,0.34400492]
[1748536844248,1.18205922,106910.0,106900.0,0.34404492]
[1748536844710,1.18205922,106910.0,106900.0,0.34404461]
[1748536845344,1.18205922,106910.0,106900.0,0.34404466]
[1748536845833,1.18205922,106910.0,106900.0,0.34404471]
[1748536846501,1.18205922,106910.0,106900.0,0.34404455]
[1748536846727,1.18205922,106910.0,106900.0,0.34404471]
[1748536846935,1.18205922,106910.0,106900.0,0.32652]
[1748536847146,1.18205922,106910.0,106900.0,0.34404472]
[1748536847359,1.18205922,106910.0,106900.0,0.05036472]
[1748536847566,1.18205922,106910.0,106900.0,0.01856472]
[1748536847815,1.18205922,106910.0,106900.0,0.31220472]
[1748536848066,1.18205922,106910.0,106900.0,0.31220597]
[1748536848276,1.18205922,106910.0,106900.0,0.31220664]
[1748536848718,1.18205922,106910.0,106900.0,0.29468]
[1748536848932,1.18205922,106910.0,106900.0,0.31220659]
[1748536849393,1.18205922,106910.0,106900.0,0.31220631]
[1748536850138,1.18205922,106910.0,106900.0,0.34520594]
[1748536850567,1.18205922,106910.0,106900.0,0.34520642]
[1748536850778,1.18205922,106910.0,106900.0,0.31220627]
[1748536850991,0.68481922,106910.0,106900.0,0.3122064]
[1748536851207,1.18089922,106910.0,106900.0,0.3452064]
[1748536851620,1.18089922,106910.0,106900.0,0.34520638]
[1748536852106,0.18756574,106910.0,106900.0,0.39164723]
[1748536852324,0.01919921,106910.0,106900.0,0.55236197]
[1748536852556,0.22497897,106910.0,106900.0,0.54300744]
[1748536852782,0.22497897,106910.0,106900.0,0.74880679]
[1748536853018,0.22497897,106910.0,106900.0,0.75816071]
[1748536853276,0.03790574,106910.0,106900.0,0.77567604]
[1748536853493,0.02855199,106910.0,106900.0,0.75816071]
[1748536853711,0.2259787,106910.0,106900.0,0.76016071]
[1748536853919,0.23533227,106910.0,106900.0,0.77468233]
[1748536854152,0.23433297,106910.0,106900.0,0.77567477]
[1748536854388,0.23433297,106910.0,106900.0,0.77567476]
[1748536854616,0.23533297,106910.0,106900.0,0.78902877]
[1748536854867,0.21662645,106910.0,106900.0,0.48968152]
[1748536855085,0.20727297,106910.0,106900.0,0.69448127]
[1748536855306,0.30027297,106910.0,106900.0,0.69648155]
[1748536855530,0.2909194,106910.0,106900.0,0.69448172]
[1748536855782,0.2899194,106910.0,106900.0,0.69448184]
[1748536856008,0.28156574,106910.0,106900.0,0.67996694]
[1748536856241,0.28156574,106910.0,106900.0,0.10698817]
[1748536856468,0.28123791,106910.0,106900.0,0.05755488]
[1748536856687,0.28123791,106910.0,106900.0,0.31814585]
[1748536856943,0.28123791,106910.0,106900.0,0.31518085]
[1748536857172,0.28123791,106910.0,106900.0,0.03908682]
[1748536857173,0.68527791,106910.0,106900.0,0.03908682]
[1748536857384,0.68527791,106910.0,106900.0,0.33268682]
[1748536858318,0.68527791,106910.0,106900.0,0.03908682]
[1748536858568,0.68527791,106910.0,106900.0,0.33268349]
[1748536858805,0.68527791,106910.0,106900.0,0.03908367]
[1748536859003,0.68527791,106910.0,106900.0,0.33268367]
[1748536859689,0.68527791,106910.0,106900.0,0.33268255]
[1748536860123,0.68527791,106910.0,106900.0,0.33268247]
[1748536860338,0.68527791,106910.0,106900.0,0.36478205]
[1748536861030,0.68527791,106910.0,106900.0,0.36478157]
[1748536861470,0.68527791,106910.0,106900.0,0.34728085]
[1748536861679,0.68527791,106910.0,106900.0,0.36478075]
[1748536863153,0.68527791,106910.0,106900.0,0.36478024]
[1748536863580,0.68527791,106910.0,106900.0,0.36478011]
[1748536864427,0.68527791,106910.0,106900.0,0.33268011]
[1748536864679,0.68527791,106910.0,106900.0,0.33268038]
[1748536865308,0.68527791,106910.0,106900.0,0.03908095]
[1748536865520,0.68527791,106910.0,106900.0,0.33264095]
[1748536866003,0.68527791,106910.0,106900.0,0.33264255]
[1748536867069,0.68527791,106910.0,106900.0,0.31514085]
[1748536867500,0.68527791,106910.0,106900.0,0.33264259]
[1748536867715,0.68527791,106910.0,106900.0,0.31514085]
[1748536867941,0.68527791,106910.0,106900.0,0.33264335]
[1748536868591,0.28123791,106910.0,106900.0,0.33264335]
[1748536868797,0.28123791,106910.0,106900.0,0.33264323]
[1748536869016,0.28123791,106910.0,106900.0,0.31514085]
[1748536869684,0.31213791,106910.0,106900.0,0.33514085]
[1748536869935,0.77619186,106910.0,106900.0,0.02704]
[1748536870145,0.77619186,106910.0,106900.0,0.3206]
[1748536871252,0.77519186,106910.0,106900.0,0.3176]
[1748536871462,0.77519186,106910.0,106900.0,0.3156]
[1748536871667,0.77619186,106910.0,106900.0,0.3186]
[1748536871872,0.77619186,106910.0,106900.0,0.2986]
[1748536874394,0.77619186,106910.0,106900.0,0.00504]
[1748536874652,0.68419186,106910.0,106900.0,0.00504]
[1748536874870,1.26405186,106910.0,106900.0,0.00504]
[1748536875740,1.26205186,106910.0,106900.0,4e-05]
[1748536875964,1.31205186,106910.0,106900.0,4e-05]
[1748536876202,1.31505186,106910.0,106900.0,0.00104]
[1748536876915,0.20583769,106880.0,106870.0,0.29356]
[1748536877154,0.19650023,106870.0,106860.0,0.11194228]
[1748536877376,0.19650023,106870.0,106860.0,0.42004313]
[1748536878547,0.19650023,106870.0,106860.0,0.42037096]
[1748536878840,0.19750023,106870.0,106860.0,0.45707096]
[1748536879313,0.19850023,106870.0,106860.0,0.46007096]
[1748536880495,0.29981713,106870.0,106860.0,0.46007096]
[1748536881176,0.20785713,106870.0,106860.0,0.46007096]
[1748536881426,0.29046023,106870.0,106860.0,0.46007096]
[1748536882040,0.29046023,106870.0,106860.0,0.38523116]
[1748536883166,0.19850023,106870.0,106860.0,0.38523116]
[1748536883388,0.29046023,106870.0,106860.0,0.38523116]
[1748536884987,0.29046023,106870.0,106860.0,0.47628511]
[1748536886286,0.28110325,106870.0,106860.0,0.47628511]
[1748536887890,0.28110325,106870.0,106860.0,0.66348588]
[1748536888107,0.29046023,106870.0,106860.0,0.47632511]
[1748536889683,0.29981695,106870.0,106860.0,0.66348588]
[1748536889904,0.30917411,106870.0,106860.0,0.67284383]
[1748536890129,0.30917411,106870.0,106860.0,0.47632511]
[1748536891125,0.30917411,106870.0,106860.0,0.66348588]
[1748536891341,0.30917411,106870.0,106860.0,0.48568314]
[1748536891762,0.29981739,106870.0,106860.0,0.47632511]
[1748536891972,0.29981739,106870.0,106860.0,0.67284383]
[1748536892178,0.29049962,106870.0,106860.0,1.67734023]
[1748536892383,0.31857005,106870.0,106860.0,1.65862513]
[1748536892602,0.31857005,106870.0,106860.0,1.66798273]
[1748536892809,0.31857005,106870.0,106860.0,1.03455281]
[1748536893012,0.30921298,106870.0,106860.0,1.04391041]
[1748536893222,0.11271292,106870.0,106860.0,1.0502743]
[1748536893434,0.3185697,106870.0,106860.0,1.04091688]
[1748536893641,0.002,106870.0,106860.0,1.68669783]
[1748536894035,0.002,106870.0,106860.0,2.94513783]
[1748536894280,0.002,106870.0,106860.0,2.94813128]
[1748536894697,0.002,106870.0,106860.0,2.94513783]
[1748536895115,0.001,106870.0,106860.0,2.94513101]
[1748536895527,0.002,106870.0,106860.0,2.94513783]
[1748536895931,0.001,106870.0,106860.0,2.93913783]
[1748536896117,0.002,106870.0,106860.0,2.94813096]
[1748536896531,0.20785661,106870.0,106860.0,1.63221294]
[1748536896732,0.002,106870.0,106860.0,1.87853936]
[1748536896882,0.01135646,106870.0,106860.0,1.87853936]
[1748536897085,0.01135655,106870.0,106860.0,1.87853936]
[1748536897355,0.01135655,106870.0,106860.0,0.17121739]
[1748536897356,0.20785695,106870.0,106860.0,0.17121739]
[1748536897571,0.20785695,106870.0,106860.0,0.43403739]
[1748536897793,0.29981695,106870.0,106860.0,0.43104426]
[1748536898000,0.29981695,106870.0,106860.0,0.44558511]
[1748536898205,0.29981695,106870.0,106860.0,0.41358511]
[1748536898641,0.29981695,106870.0,106860.0,0.12006511]
[1748536898849,0.29881695,106870.0,106860.0,0.40758511]
[1748536899272,0.29981695,106870.0,106860.0,0.11806511]
[1748536899482,0.29981695,106870.0,106860.0,0.41158511]
[1748536899689,0.29881695,106870.0,106860.0,0.40858511]
[1748536899896,0.29981695,106870.0,106860.0,0.41158511]
[1748536900819,0.29981695,106870.0,106860.0,0.02701116]
[1748536901032,0.29981695,106870.0,106860.0,0.32049116]
[1748536903394,0.29981695,106870.0,106860.0,0.32348502]
[1748536905656,0.29981695,106870.0,106860.0,0.03000502]
[1748536905877,0.33211695,106870.0,106860.0,0.32049116]
[1748536906316,0.36231695,106870.0,106860.0,0.02701116]
[1748536906545,0.29981695,106870.0,106860.0,0.32049116]
[1748536907883,0.29981695,106870.0,106860.0,0.02701116]
[1748536908108,0.29981695,106870.0,106860.0,0.32049116]
[1748536910034,0.20785695,106870.0,106860.0,0.38439116]
[1748536910765,0.20785695,106870.0,106860.0,0.35139116]
[1748536911723,0.20785695,106870.0,106860.0,0.32049116]
[1748536912152,0.20785695,106870.0,106860.0,0.02701116]
[1748536912376,0.20785695,106870.0,106860.0,0.32049116]
[1748536914201,0.20785695,106870.0,106860.0,0.02701116]
[1748536914435,0.23885695,106870.0,106860.0,0.32049116]
[1748536914653,0.27205695,106870.0,106860.0,0.32049116]
[1748536914869,0.23885695,106870.0,106860.0,0.32049116]
[1748536916371,0.23885695,106870.0,106860.0,0.32045116]
[1748536917043,0.23885695,106870.0,106860.0,0.02701116]
[1748536917261,0.27115695,106870.0,106860.0,0.02701116]
[1748536917510,0.27115695,106870.0,106860.0,0.32045116]
[1748536918630,0.26915695,106870.0,106860.0,0.31345116]
[1748536918834,0.27015695,106870.0,106860.0,0.31645116]
[1748536919042,0.27015695,106870.0,106860.0,0.31845116]
[1748536921612,0.27015695,106870.0,106860.0,0.30391031]
[1748536922953,0.7012109,106870.0,106860.0,0.01047031]
[1748536923238,0.7012109,106870.0,106860.0,0.00536783]
[1748536923459,0.79353852,106870.0,106860.0,0.00536783]
[1748536923685,1.28143852,106870.0,106860.0,0.00536783]
[1748536924123,1.33143852,106870.0,106860.0,0.00536783]
[1748536924846,1.2672029,106870.0,106860.0,0.00536783]
[1748536925277,1.2662029,106870.0,106860.0,0.00036783]
[1748536925499,1.2742029,106870.0,106860.0,0.00236783]
[1748536926619,1.3242029,106870.0,106860.0,0.00236783]
[1748536926842,1.4161229,106870.0,106860.0,0.00236783]
[1748536929389,0.26909548,106850.0,106840.0,7.497e-05]
[1748536929610,0.85630943,106850.0,106840.0,0.00022255]
[1748536932141,0.85830943,106850.0,106840.0,0.00122255]
[1748536933303,0.030096,106850.0,106840.0,1.45503668]
[1748536933557,0.002,106850.0,106840.0,6.37900531]
[1748536934648,0.18712616,106880.0,106870.0,0.2329841]
[1748536934649,0.00935558,106880.0,106870.0,0.2329841]
[1748536934704,0.21520461,106900.0,106880.0,0.22037801]
[1748536934706,0.21517306,106890.0,106880.0,0.24232243]
[1748536934707,0.03741953,106890.0,106880.0,0.2423227]
[1748536934709,0.03741953,106890.0,106880.0,0.24232287]
[1748536934710,0.21517385,106890.0,106880.0,0.24232287]
[1748536935008,0.21517385,106890.0,106880.0,0.36587682]
[1748536935604,0.21517385,106890.0,106880.0,0.1693948]
[1748536935605,0.20581888,106890.0,106880.0,0.1693948]
[1748536935866,0.19646365,106890.0,106880.0,0.1693948]
[1748536936202,0.19646365,106890.0,106880.0,0.4627948]
[1748536936203,0.19646365,106890.0,106880.0,0.4647948]
[1748536937047,0.19646365,106890.0,106880.0,0.45226992]
[1748536937445,0.19646365,106890.0,106880.0,0.15886992]
[1748536937651,0.19646365,106890.0,106880.0,0.45222992]
[1748536939352,0.28826365,106890.0,106880.0,0.45222992]
[1748536940047,0.28826365,106890.0,106880.0,0.36117597]
[1748536940267,0.28826365,106890.0,106880.0,0.03531597]
[1748536940473,0.28826365,106890.0,106880.0,0.32863597]
[1748536940677,0.28826365,106890.0,106880.0,0.03531597]
[1748536941087,0.28826365,106890.0,106880.0,0.32859597]
[1748536941306,0.28826365,106890.0,106880.0,0.03531597]
[1748536941513,0.28826365,106890.0,106880.0,0.32859597]
[1748536941923,0.28826365,106890.0,106880.0,0.32863597]
[1748536942621,0.28826365,106890.0,106880.0,0.00204]
[1748536942622,0.69166365,106890.0,106880.0,0.00204]
[1748536942874,0.7827176,106890.0,106880.0,0.00204]
[1748536944024,0.7847176,106890.0,106880.0,0.00204]
[1748536944458,0.7847176,106890.0,106880.0,4e-05]
[1748536945987,0.8347176,106890.0,106880.0,4e-05]
[1748536946204,1.3226176,106890.0,106880.0,4e-05]
[1748536946462,1.41995626,106890.0,106880.0,4e-05]
[1748536946693,1.3826176,106890.0,106880.0,4e-05]
[1748536947855,1.3876176,106890.0,106880.0,0.00104]
[1748536948283,1.3856176,106890.0,106880.0,0.00104]
[1748536948711,1.3906176,106890.0,106880.0,0.00204]
[1748536948944,1.48312882,106890.0,106880.0,0.00204]
[1748536949165,0.61047623,106860.0,106850.0,4e-05]
[1748536949384,1.19753018,106860.0,106850.0,4e-05]
[1748536950043,1.16503018,106860.0,106850.0,4e-05]
[1748536950449,1.04113018,106860.0,106850.0,4e-05]
[1748536950669,1.13293018,106860.0,106850.0,4e-05]
[1748536951154,1.13393018,106860.0,106850.0,4e-05]
[1748536951689,1.13493018,106860.0,106850.0,4e-05]
[1748536952566,1.20043018,106860.0,106850.0,4e-05]
[1748536952785,1.25043018,106860.0,106850.0,4e-05]
[1748536954357,0.65467018,106860.0,106850.0,4e-05]
[1748536954576,0.84183095,106860.0,106850.0,4e-05]
[1748536954802,0.85954641,106860.0,106850.0,4e-05]
[1748536955236,0.86054641,106860.0,106850.0,0.00104]
[1748536955716,0.86354641,106860.0,106850.0,0.00204]
[1748536956360,1.20354641,106860.0,106850.0,0.00204]
[1748536957253,0.99624641,106860.0,106850.0,0.00204]
[1748536957480,0.70695623,106860.0,106850.0,0.00204]
[1748536958411,1.04695623,106860.0,106850.0,0.00204]
[1748536959070,1.05639999,106860.0,106850.0,0.00204]
[1748536960531,1.04695623,106860.0,106850.0,0.00204]
[1748536963177,1.05615784,106860.0,106850.0,0.00204]
[1748536964547,1.05615784,106860.0,106850.0,0.03524]
[1748536965749,1.05615784,106860.0,106850.0,0.00204]
[1748536965750,1.21111179,106860.0,106850.0,0.00204]
[1748536967178,1.26111179,106860.0,106850.0,0.00204]
[1748536968305,1.21111179,106860.0,106850.0,0.00204]
[1748536973273,1.17851179,106860.0,106850.0,0.00204]
[1748536973495,0.65203701,106850.0,106840.0,7.497e-05]
[1748536973721,0.74309096,106850.0,106840.0,0.00022255]
[1748536974170,0.66039096,106850.0,106840.0,0.00022255]
[1748536974610,0.71139096,106850.0,106840.0,0.00022255]
[1748536976232,0.74159096,106850.0,106840.0,0.00022255]
[1748536980212,0.71139096,106850.0,106840.0,0.00022255]
[1748536980433,0.80311096,106850.0,106840.0,0.00022255]
[1748536981389,0.83521096,106850.0,106840.0,0.00022255]
[1748536986841,0.89945764,106850.0,106840.0,0.00022255]